[Event "Skanderborg Skakklub SmukSkak EMT"]
[Site "Niels Ebbesenskolen, Skanderborg, Denmark"]
[Date "2020.08.22"]
[Round "2.6"]
[White "Brondt, Nicolai Kvist"]
[Black "Pedersen, Nicolai Vesterbæk"]
[Result "1-0"]
[TimeControl "90 min. til 40 træk, derefter 30 min. plus opsparet tid til resten af partiet med 30 sek. tillæg pr. træk fra træk ét."]
[WhiteTitle "FM"]
[BlackTitle "IM"]
[WhiteFideId "1413848"]
[BlackFideId "1402340"]
[WhiteElo "2244"]
[BlackElo "2384"]

1. d4 {[%clk 01:30:57]} {[%emt 00:00:02]} Nf6 {[%clk 01:30:33]} {[%emt
00:00:27]} 2. c4 {[%clk 01:31:23]} {[%emt 00:00:05]} g6 {[%clk 01:30:41]}
{[%emt 00:00:23]} 3. Nf3 {[%clk 01:30:58]} {[%emt 00:00:55]} Bg7 {[%clk
01:31:00]} {[%emt 00:00:11]} 4. g3 {[%clk 01:31:07]} {[%emt 00:00:22]} O-O
{[%clk 01:30:34]} {[%emt 00:00:56]} 5. Bg2 {[%clk 01:31:34]} {[%emt 00:00:03]}
d6 {[%clk 01:30:16]} {[%emt 00:00:48]} 6. O-O {[%clk 01:31:57]} {[%emt
00:00:15]} Nc6 {[%clk 01:30:28]} {[%emt 00:00:09]} 7. Nc3 {[%clk 01:32:07]}
{[%emt 00:00:19]} e5 {[%clk 01:30:44]} {[%emt 00:00:15]} 8. dxe5 {[%clk
01:31:21]} {[%emt 00:01:24]} dxe5 {[%clk 01:31:04]} {[%emt 00:00:03]} 9. Bg5
{[%clk 01:29:26]} {[%emt 00:02:24]} Be6 {[%clk 01:31:28]} {[%emt 00:00:11]} 10.
Qc1 {[%clk 01:26:19]} {[%emt 00:03:37]} Qc8 {[%clk 01:30:00]} {[%emt 00:01:54]}
11. Rd1 {[%clk 01:23:03]} {[%emt 00:03:46]} Rd8 {[%clk 01:05:20]} {[%emt
00:25:09]} 12. Nd2 {[%clk 01:10:07]} {[%emt 00:13:26]} Bh3 {[%clk 00:21:41]}
{[%emt 00:44:16]} 13. Nde4 {[%clk 00:36:30]} {[%emt 00:34:02]} Rxd1+ 14. Qxd1
{[%clk 00:36:55]} Nxe4 {[%clk 00:15:29]} {[%emt 00:01:43]} 15. Bxe4 {[%clk
00:32:47]} {[%emt 00:04:37]} h6 {[%clk 00:12:05]} {[%emt 00:03:53]} 16. Be3
{[%clk 00:28:43]} {[%emt 00:04:34]} f5 {[%clk 00:11:50]} {[%emt 00:00:45]} 17.
Qd5+ {[%clk 00:17:55]} {[%emt 00:11:18]} Kh7 {[%clk 00:11:54]} {[%emt
00:00:25]} 18. Bg2 {[%clk 00:17:29]} {[%emt 00:00:56]} Bxg2 {[%clk 00:10:03]}
{[%emt 00:02:23]} 19. Kxg2 {[%clk 00:17:32]} {[%emt 00:00:26]} Nd4 {[%clk
00:02:01]} {[%emt 00:08:33]} 20. Rd1 {[%clk 00:17:22]} {[%emt 00:00:40]} Ne6
{[%clk 00:01:31]} {[%emt 00:01:00]} 21. Bc1 {[%clk 00:14:58]} {[%emt 00:02:55]}
e4 {[%clk 00:01:08]} {[%emt 00:00:52]} 22. f3 {[%clk 00:13:28]} {[%emt
00:02:00]} exf3+ {[%clk 00:01:24]} {[%emt 00:00:14]} 23. exf3 {[%clk 00:13:32]}
{[%emt 00:00:25]} c6 {[%clk 00:01:33]} {[%emt 00:00:21]} 24. Qd6 {[%clk
00:11:58]} {[%emt 00:02:03]} Bf8 {[%clk 00:01:22]} {[%emt 00:00:42]} 25. Qd7+
{[%clk 00:11:47]} {[%emt 00:00:41]} Kg8 {[%clk 00:01:35]} {[%emt 00:00:17]} 26.
Be3 {[%clk 00:11:29]} {[%emt 00:00:46]} b6 {[%clk 00:01:16]} {[%emt 00:00:51]}
27. b3 {[%clk 00:08:55]} {[%emt 00:03:04]} Bg7 {[%clk 00:01:12]} {[%emt
00:00:34]} 28. Ne2 {[%clk 00:08:25]} {[%emt 00:00:58]} Qe8 {[%clk 00:00:38]}
{[%emt 00:01:06]} 29. Kf2 {[%clk 00:07:41]} {[%emt 00:01:13]} Nf8 {[%clk
00:00:59]} {[%emt 00:00:10]} 30. Qxe8 {[%clk 00:06:00]} {[%emt 00:02:11]} Rxe8
{[%clk 00:01:26]} {[%emt 00:00:02]} 31. Rd6 {[%clk 00:05:03]} {[%emt 00:01:27]}
c5 {[%clk 00:00:43]} {[%emt 00:01:13]} 32. Nf4 {[%clk 00:04:31]} {[%emt
00:01:01]} Kf7 {[%clk 00:01:09]} {[%emt 00:00:05]} 33. a4 {[%clk 00:02:47]}
{[%emt 00:02:15]} Be5 {[%clk 00:01:25]} {[%emt 00:00:13]} 34. Rd2 {[%clk
00:02:32]} {[%emt 00:00:44]} g5 {[%clk 00:01:37]} {[%emt 00:00:19]} 35. Nd5
{[%clk 00:01:55]} {[%emt 00:01:07]} Ne6 {[%clk 00:01:44]} {[%emt 00:00:23]} 36.
Re2 {[%clk 00:01:54]} {[%emt 00:00:29]} f4 {[%clk 00:01:42]} {[%emt 00:00:35]}
37. Bxf4 {[%clk 00:01:16]} {[%emt 00:01:08]} gxf4 {[%clk 00:00:33]} {[%emt
00:01:39]} 38. Rxe5 {[%clk 00:01:43]} {[%emt 00:00:02]} fxg3+ {[%clk 00:00:58]}
{[%emt 00:00:05]} 39. hxg3 {[%clk 00:01:51]} {[%emt 00:00:22]} Nd4 {[%clk
00:01:10]} {[%emt 00:00:19]} 40. Rxe8 {[%clk 00:01:47]} {[%emt 00:00:34]} Kxe8
{[%clk 00:01:38]} {[%emt 00:00:01]} 41. b4 {[%clk 00:00:46]} {[%emt 00:01:31]}
cxb4 {[%clk 00:00:36]} {[%emt 00:01:33]} 42. Nxb4 {[%clk 00:00:59]} {[%emt
00:00:16]} Nb3 {[%clk 00:30:24]} {[%emt 00:00:42]} 43. Nd3 {[%clk 00:26:44]}
{[%emt 00:04:45]} Na5 {[%clk 00:21:28]} {[%emt 00:09:26]} 44. c5 {[%clk
00:25:07]} {[%emt 00:02:06]} Kd7 {[%clk 00:21:26]} {[%emt 00:00:32]} 45. cxb6
{[%clk 00:24:47]} {[%emt 00:00:50]} axb6 {[%clk 00:21:54]} {[%emt 00:00:02]} 46.
Ke3 {[%clk 00:24:14]} {[%emt 00:01:03]} Nc4+ {[%clk 00:19:44]} {[%emt
00:02:40]} 47. Kd4 {[%clk 00:23:01]} {[%emt 00:01:40]} Nd6 {[%clk 00:19:50]}
{[%emt 00:00:26]} 48. g4 {[%clk 00:19:23]} {[%emt 00:04:08]} Ne8 {[%clk
00:18:07]} {[%emt 00:02:14]} 49. Ne5+ {[%clk 00:18:22]} {[%emt 00:01:32]} Ke6
{[%clk 00:17:28]} {[%emt 00:01:08]} 50. Nc4 {[%clk 00:17:16]} {[%emt 00:01:36]}
h5 {[%clk 00:17:24]} {[%emt 00:00:34]} 51. gxh5 {[%clk 00:17:00]} {[%emt
00:00:46]} Ng7 {[%clk 00:17:51]} {[%emt 00:00:02]} 52. Nxb6 {[%clk 00:16:37]}
{[%emt 00:00:54]} Kd6 {[%clk 00:17:59]} {[%emt 00:00:22]} 53. Nc4+ {[%clk
00:15:23]} {[%emt 00:01:43]} Kc7 {[%clk 00:18:18]} {[%emt 00:00:12]} 54. h6
{[%clk 00:14:05]} {[%emt 00:01:49]} Nf5+ {[%clk 00:18:45]} {[%emt 00:00:02]} 55.
Ke5 {[%clk 00:14:08]} {[%emt 00:00:25]} Nxh6 {[%clk 00:19:12]} {[%emt
00:00:05]} 56. Ke6 {[%clk 00:13:04]} {[%emt 00:01:34]} Kc6 {[%clk 00:19:12]}
{[%emt 00:00:31]} 57. f4 {[%clk 00:11:37]} {[%emt 00:01:56]} Kc5 {[%clk
00:19:36]} {[%emt 00:00:06]} 58. Nb2 {[%clk 00:11:20]} {[%emt 00:00:47]} 1-0

[Event "Skanderborg Skakklub SmukSkak EMT"]
[Site "Niels Ebbesenskolen, Skanderborg, Denmark"]
[Date "2020.08.22"]
[Round "3.1"]
[White "Wilton, Lars"]
[Black "Olsen, Michael R. W."]
[Result "0-1"]
[TimeControl "90 min. til 40 træk, derefter 30 min. plus opsparet tid til resten af partiet med 30 sek. tillæg pr. træk fra træk ét."]
[WhiteFideId "1404962"]
[BlackFideId "1440969"]
[WhiteElo "1984"]
[BlackElo "2104"]

1. c4 {[%clk 01:29:07]} {[%emt 00:01:46]} c5 {[%clk 01:29:53]} {[%emt
00:01:12]} 2. Nf3 {[%clk 01:29:16]} {[%emt 00:00:24]} Nc6 {[%clk 01:30:13]}
{[%emt 00:00:12]} 3. Nc3 {[%clk 01:29:29]} {[%emt 00:00:12]} Nd4 {[%clk
01:29:44]} {[%emt 00:01:00]} 4. e3 {[%clk 01:29:06]} {[%emt 00:00:47]} Nxf3+
{[%clk 01:30:03]} {[%emt 00:00:23]} 5. Qxf3 {[%clk 01:28:52]} {[%emt 00:00:48]}
d6 {[%clk 01:30:03]} {[%emt 00:00:23]} 6. Bd3 {[%clk 01:25:13]} {[%emt
00:04:19]} Nf6 {[%clk 01:29:34]} {[%emt 00:00:43]} 7. O-O {[%clk 01:24:24]}
{[%emt 00:01:17]} g6 {[%clk 01:28:26]} {[%emt 00:01:37]} 8. Bc2 {[%clk
01:21:51]} {[%emt 00:03:04]} Bg7 {[%clk 01:27:16]} {[%emt 00:01:40]} 9. b3
{[%clk 01:18:55]} {[%emt 00:03:26]} Rb8 {[%clk 01:24:54]} {[%emt 00:02:51]} 10.
Bb2 {[%clk 01:16:33]} {[%emt 00:02:53]} Bg4 {[%clk 01:22:55]} {[%emt 00:02:29]}
11. Qg3 {[%clk 01:16:49]} {[%emt 00:00:13]} Bd7 {[%clk 01:18:48]} {[%emt
00:04:37]} 12. f4 {[%clk 01:10:30]} {[%emt 00:06:50]} Nh5 {[%clk 01:17:03]}
{[%emt 00:02:14]} 13. Qf2 {[%clk 01:09:43]} {[%emt 00:01:17]} f5 {[%clk
01:16:47]} {[%emt 00:00:47]} 14. d4 {[%clk 01:06:19]} {[%emt 00:03:54]} cxd4
{[%clk 01:10:57]} {[%emt 00:06:19]} 15. exd4 {[%clk 01:06:23]} {[%emt
00:00:27]} O-O {[%clk 01:10:42]} {[%emt 00:00:45]} 16. Rae1 {[%clk 01:06:08]}
{[%emt 00:00:45]} Re8 {[%clk 01:09:11]} {[%emt 00:02:00]} 17. Bd1 {[%clk
01:01:56]} {[%emt 00:04:42]} Nf6 {[%clk 01:08:10]} {[%emt 00:01:31]} 18. Bf3
{[%clk 00:54:19]} {[%emt 00:08:07]} Qa5 {[%clk 01:01:24]} {[%emt 00:07:16]} 19.
Kh1 {[%clk 00:40:32]} {[%emt 00:14:17]} a6 {[%clk 00:53:44]} {[%emt 00:08:09]}
20. a3 {[%clk 00:36:02]} {[%emt 00:05:01]} Qc7 {[%clk 00:44:22]} {[%emt
00:09:52]} 21. Rc1 {[%clk 00:32:51]} {[%emt 00:03:42]} e6 {[%clk 00:37:07]}
{[%emt 00:07:43]} 22. g3 {[%clk 00:31:06]} {[%emt 00:02:16]} Rbc8 {[%clk
00:33:50]} {[%emt 00:03:46]} 23. Rfe1 {[%clk 00:29:54]} {[%emt 00:01:47]} Qb6
{[%clk 00:33:36]} {[%emt 00:00:48]} 24. Qc2 {[%clk 00:26:42]} {[%emt 00:03:44]}
h5 {[%clk 00:27:24]} {[%emt 00:06:32]} 25. Nd1 {[%clk 00:24:40]} {[%emt
00:02:32]} Re7 {[%clk 00:19:55]} {[%emt 00:07:59]} 26. b4 {[%clk 00:21:32]}
{[%emt 00:03:38]} d5 {[%clk 00:15:49]} {[%emt 00:04:37]} 27. c5 {[%clk
00:21:44]} {[%emt 00:00:17]} Qd8 {[%clk 00:15:46]} {[%emt 00:00:30]} 28. a4
{[%clk 00:20:10]} {[%emt 00:02:08]} Ne4 {[%clk 00:08:47]} {[%emt 00:07:29]} 29.
Re3 {[%clk 00:15:44]} {[%emt 00:04:55]} Kf7 {[%emt 00:02:02]} 30. Kg2 {[%clk
00:15:04]} {[%emt 00:00:02]} Qh8 {[%clk 00:08:19]} {[%emt 00:00:34]} 31. Rd3
{[%clk 00:11:28]} {[%emt 00:04:07]} h4 {[%clk 00:07:59]} {[%emt 00:00:49]} 32.
Bxe4 {[%clk 00:07:25]} {[%emt 00:04:33]} dxe4 {[%clk 00:08:01]} {[%emt
00:00:27]} 33. Rd2 {[%emt 00:00:25]} hxg3 {[%clk 00:07:56]} {[%emt 00:00:20]}
34. hxg3 {[%clk 00:08:01]} {[%emt 00:00:15]} Qh5 {[%emt 00:05:04]} 35. Rf2
{[%emt 00:00:41]} e3 {[%emt 00:00:23]} 36. Nxe3 {[%emt 00:00:33]} Bc6+ {[%clk
00:07:35]} {[%emt 00:00:03]} 37. d5 {[%emt 00:00:41]} exd5 {[%emt 00:00:30]} 38.
b5 {[%emt 00:03:39]} Rxe3 {[%emt 00:04:20]} 39. Qd1 {[%emt 00:01:32]} Qxd1
{[%clk 00:03:06]} {[%emt 00:00:09]} 40. Rxd1 {[%emt 00:00:24]} axb5 {[%emt
00:00:16]} 41. axb5 {[%emt 00:00:08]} Bxb5 {[%emt 00:00:08]} 42. Bxg7 {[%clk
00:01:33]} {[%emt 00:00:22]} Kxg7 {[%clk 00:03:51]} {[%emt 00:00:11]} 0-1

[Event "Skanderborg Skakklub SmukSkak EMT"]
[Site "Niels Ebbesenskolen, Skanderborg, Denmark"]
[Date "2020.08.22"]
[Round "3.2"]
[White "Hansen, Morten Lyck"]
[Black "Pedersen, Lars Foldager"]
[Result "0-1"]
[TimeControl "90 min. til 40 træk, derefter 30 min. plus opsparet tid til resten af partiet med 30 sek. tillæg pr. træk fra træk ét."]
[WhiteFideId "1408437"]
[BlackFideId "1417649"]
[WhiteElo "1945"]
[BlackElo "1959"]

1. e4 {[%clk 01:30:55]} {[%emt 00:00:12]} d5 {[%clk 01:30:59]} 2. exd5 {[%clk
01:31:24]} Qxd5 {[%clk 01:31:27]} 3. Nc3 {[%clk 01:31:53]} Qa5 {[%clk
01:31:56]} 4. d4 {[%clk 01:32:15]} {[%emt 00:00:12]} Nf6 {[%emt 00:00:12]} 5.
Nf3 {[%emt 00:00:12]} Bf5 {[%clk 01:30:09]} {[%emt 00:01:48]} 6. Bc4 {[%clk
01:32:29]} {[%emt 00:00:24]} e6 {[%clk 01:29:06]} {[%emt 00:01:25]} 7. Bd2
{[%clk 01:32:22]} {[%emt 00:00:56]} c6 {[%clk 01:28:39]} {[%emt 00:00:48]} 8.
O-O {[%clk 01:25:15]} {[%emt 00:07:28]} Nbd7 {[%clk 01:26:34]} {[%emt
00:02:35]} 9. d5 {[%clk 01:22:27]} {[%emt 00:03:18]} cxd5 {[%clk 01:18:23]}
{[%emt 00:08:40]} 10. Nxd5 {[%clk 01:22:45]} {[%emt 00:00:12]} Qc5 {[%clk
01:17:43]} {[%emt 00:01:09]} 11. Nxf6+ {[%clk 01:22:07]} {[%emt 00:01:09]} Nxf6
{[%clk 01:10:42]} {[%emt 00:07:31]} 12. Qe2 {[%clk 01:21:53]} {[%emt 00:00:44]}
a6 {[%clk 01:10:37]} {[%emt 00:00:37]} 13. Be3 {[%clk 01:19:25]} {[%emt
00:02:56]} Qc7 {[%clk 01:09:10]} {[%emt 00:01:57]} 14. h3 {[%clk 01:15:40]}
{[%emt 00:04:15]} Bd6 {[%clk 01:06:28]} {[%emt 00:03:12]} 15. Nd4 {[%clk
01:14:47]} {[%emt 00:01:23]} Be4 {[%clk 01:00:43]} {[%emt 00:06:15]} 16. Bg5
{[%clk 01:11:50]} {[%emt 00:03:27]} Bd5 {[%clk 00:49:35]} {[%emt 00:11:38]} 17.
Bxd5 {[%clk 01:12:06]} {[%emt 00:00:14]} Nxd5 {[%clk 00:49:29]} {[%emt
00:00:36]} 18. Rfe1 {[%clk 00:51:28]} {[%emt 00:21:08]} Ne7 {[%clk 00:38:51]}
{[%emt 00:11:08]} 19. Rad1 {[%clk 00:48:37]} {[%emt 00:03:21]} e5 {[%clk
00:34:23]} {[%emt 00:04:58]} 20. Bxe7 {[%clk 00:48:21]} {[%emt 00:00:46]} Bxe7
{[%clk 00:33:12]} {[%emt 00:01:41]} 21. Qxe5 {[%clk 00:44:23]} {[%emt
00:04:28]} Qxe5 {[%clk 00:33:15]} {[%emt 00:00:28]} 22. Rxe5 {[%clk 00:44:48]}
{[%emt 00:00:04]} f6 {[%clk 00:29:56]} {[%emt 00:03:49]} 23. Re2 {[%clk
00:44:04]} {[%emt 00:01:12]} Kf7 {[%clk 00:29:23]} {[%emt 00:01:05]} 24. Nf5
{[%clk 00:43:59]} {[%emt 00:00:35]} Bf8 {[%clk 00:21:10]} {[%emt 00:08:49]} 25.
Rd7+ {[%clk 00:43:56]} {[%emt 00:00:36]} Kg6 {[%clk 00:21:26]} {[%emt
00:00:12]} 26. g4 {[%clk 00:41:36]} {[%emt 00:02:44]} h5 {[%clk 00:18:23]}
{[%emt 00:03:32]} 27. Rxb7 {[%clk 00:41:10]} {[%emt 00:00:55]} hxg4 {[%clk
00:18:04]} {[%emt 00:00:50]} 28. hxg4 {[%clk 00:41:36]} {[%emt 00:00:05]} Kg5
{[%emt 00:02:42]} 29. Ne3 {[%clk 00:41:01]} {[%emt 00:00:54]} g6 {[%clk
00:13:27]} {[%emt 00:03:05]} 30. Nd5 {[%clk 00:39:50]} {[%emt 00:01:40]} Bd6
{[%clk 00:10:22]} {[%emt 00:03:37]} 31. Re6 {[%clk 00:38:18]} {[%emt 00:02:02]}
Rad8 {[%clk 00:05:51]} {[%emt 00:05:00]} 32. c4 {[%clk 00:33:20]} {[%emt
00:05:28]} Be5 {[%clk 00:04:04]} {[%emt 00:02:16]} 33. b3 {[%clk 00:24:46]}
{[%emt 00:09:05]} Kxg4 {[%clk 00:02:19]} {[%emt 00:02:15]} 34. Ree7 {[%clk
00:22:33]} {[%emt 00:02:44]} Kf3 {[%clk 00:01:42]} {[%emt 00:01:07]} 35. Rh7
{[%clk 00:22:34]} {[%emt 00:00:28]} Bd4 {[%clk 00:01:57]} {[%emt 00:00:15]} 36.
Rxh8 {[%clk 00:17:06]} {[%emt 00:05:58]} Bxf2+ {[%clk 00:02:13]} {[%emt
00:00:14]} 37. Kf1 {[%clk 00:17:26]} {[%emt 00:00:09]} Rxh8 {[%clk 00:02:30]}
{[%emt 00:00:13]} 0-1

[Event "Skanderborg Skakklub SmukSkak EMT"]
[Site "Niels Ebbesenskolen, Skanderborg, Denmark"]
[Date "2020.08.22"]
[Round "3.3"]
[White "Bønnelykke, Ole"]
[Black "Knudsen, Martin"]
[Result "1/2-1/2"]
[TimeControl "90 min. til 40 træk, derefter 30 min. plus opsparet tid til resten af partiet med 30 sek. tillæg pr. træk fra træk ét."]
[WhiteFideId "1407287"]
[BlackFideId "1406523"]
[WhiteElo "2021"]
[BlackElo "1990"]

1. e4 {[%clk 01:30:50]} {[%emt 00:40:37]} d6 {[%clk 01:30:55]} {[%emt
00:00:10]} 2. Nc3 {[%clk 01:30:54]} {[%emt 00:00:21]} Nf6 {[%clk 01:30:48]}
{[%emt 00:00:41]} 3. g3 {[%clk 01:31:00]} {[%emt 00:00:29]} e5 {[%clk
01:30:48]} {[%emt 00:00:31]} 4. Bg2 {[%clk 01:31:10]} {[%emt 00:00:10]} Nc6
{[%clk 01:30:39]} {[%emt 00:00:41]} 5. Nge2 {[%clk 01:30:25]} {[%emt 00:01:23]}
Be7 {[%clk 01:30:18]} {[%emt 00:00:52]} 6. O-O {[%clk 01:29:52]} {[%emt
00:01:12]} O-O {[%clk 01:29:42]} {[%emt 00:01:01]} 7. d3 {[%clk 01:28:30]}
{[%emt 00:01:42]} Rb8 {[%clk 01:28:52]} {[%emt 00:01:21]} 8. a4 {[%clk
01:28:00]} {[%emt 00:01:01]} b6 {[%clk 01:25:39]} {[%emt 00:03:39]} 9. f4
{[%clk 01:27:21]} {[%emt 00:01:08]} exf4 {[%clk 01:25:37]} {[%emt 00:00:32]} 10.
Nxf4 {[%clk 01:26:11]} {[%emt 00:01:39]} Bg4 {[%clk 01:25:30]} {[%emt
00:00:37]} 11. Qe1 {[%clk 01:22:34]} {[%emt 00:04:07]} a6 {[%clk 01:22:59]}
{[%emt 00:03:03]} 12. Be3 {[%clk 01:20:14]} {[%emt 00:02:48]} Nb4 {[%clk
01:19:01]} {[%emt 00:04:29]} 13. Qf2 {[%clk 01:15:57]} {[%emt 00:04:47]} Bd7
{[%clk 01:17:52]} {[%emt 00:01:40]} 14. h3 {[%clk 01:12:40]} {[%emt 00:03:46]}
h6 {[%clk 01:15:29]} {[%emt 00:02:54]} 15. Ncd5 {[%clk 01:08:57]} {[%emt
00:04:12]} Nbxd5 {[%clk 01:14:41]} {[%emt 00:01:19]} 16. Nxd5 {[%clk 01:09:04]}
{[%emt 00:00:22]} Nxd5 {[%clk 01:14:32]} {[%emt 00:00:40]} 17. exd5 {[%clk
01:09:24]} {[%emt 00:00:09]} Bg5 {[%clk 01:02:57]} {[%emt 00:12:05]} 18. Bd4
{[%clk 01:01:30]} {[%emt 00:08:24]} f5 {[%clk 01:02:37]} {[%emt 00:00:51]} 19.
b3 {[%clk 00:58:23]} {[%emt 00:03:36]} a5 {[%clk 01:02:10]} {[%emt 00:00:58]}
20. Rae1 {[%clk 00:51:33]} {[%emt 00:07:18]} Bf6 {[%clk 01:00:54]} {[%emt
00:01:47]} 21. h4 {[%clk 00:50:00]} {[%emt 00:02:02]} Bxd4 {[%clk 00:58:06]}
{[%emt 00:03:20]} 22. Qxd4 {[%clk 00:50:20]} {[%emt 00:00:09]} Qf6 {[%clk
00:55:39]} {[%emt 00:02:58]} 23. Qxf6 {[%clk 00:42:42]} {[%emt 00:08:08]} Rxf6
{[%clk 00:55:59]} {[%emt 00:00:10]} 24. Re7 {[%clk 00:39:01]} {[%emt 00:04:10]}
Rd8 {[%clk 00:53:37]} {[%emt 00:02:52]} 25. Bh3 {[%clk 00:33:52]} {[%emt
00:05:38]} Kf8 {[%clk 00:51:29]} {[%emt 00:02:39]} 26. Re2 {[%clk 00:31:30]}
{[%emt 00:02:50]} Re8 {[%clk 00:42:15]} {[%emt 00:09:46]} 27. Rxe8+ {[%clk
00:25:11]} {[%emt 00:06:55]} 1/2-1/2

[Event "Skanderborg Skakklub SmukSkak EMT"]
[Site "Niels Ebbesenskolen, Skanderborg, Denmark"]
[Date "2020.08.22"]
[Round "3.4"]
[White "Thøgersen, Rasmus"]
[Black "Fogh, Jens Olaf Svanholm"]
[Result "1-0"]
[TimeControl "90 min. til 40 træk, derefter 30 min. plus opsparet tid til resten af partiet med 30 sek. tillæg pr. træk fra træk ét."]
[WhiteFideId "1431412"]
[BlackFideId "1409476"]
[WhiteElo "2267"]
[BlackElo "2117"]

1. e4 {[%clk 01:30:56]} {[%emt 00:00:10]} e6 {[%clk 01:30:56]} 2. d4 {[%clk
01:31:19]} {[%emt 00:00:10]} d5 {[%clk 01:31:21]} 3. Nc3 {[%clk 01:31:32]}
{[%emt 00:00:21]} dxe4 {[%clk 01:31:44]} {[%emt 00:00:10]} 4. Nxe4 {[%clk
01:31:57]} Nd7 {[%clk 01:32:09]} {[%emt 00:00:05]} 5. Nf3 {[%clk 01:31:54]}
{[%emt 00:00:36]} Ngf6 {[%clk 01:32:30]} {[%emt 00:00:10]} 6. Nxf6+ Nxf6 {[%clk
01:32:55]} 7. Bd3 {[%clk 01:32:28]} {[%emt 00:00:10]} c5 {[%clk 01:31:58]}
{[%emt 00:01:23]} 8. Be3 {[%clk 01:32:48]} {[%emt 00:00:10]} Qb6 {[%clk
01:25:19]} {[%emt 00:07:09]} 9. Qe2 {[%clk 01:19:30]} {[%emt 00:13:47]} a6
{[%clk 01:16:43]} {[%emt 00:09:06]} 10. O-O-O {[%clk 01:17:28]} {[%emt
00:02:32]} Nd5 {[%clk 01:07:10]} {[%emt 00:10:03]} 11. Ne5 {[%clk 01:12:45]}
{[%emt 00:05:13]} Nxe3 {[%clk 01:02:55]} {[%emt 00:04:45]} 12. fxe3 {[%clk
01:12:25]} {[%emt 00:00:50]} Bd6 {[%clk 00:57:01]} {[%emt 00:06:24]} 13. Qh5
{[%clk 00:57:41]} {[%emt 00:15:14]} Qc7 {[%clk 00:55:00]} {[%emt 00:02:31]} 14.
Rhf1 {[%clk 00:56:30]} {[%emt 00:01:42]} Bxe5 {[%clk 00:51:31]} {[%emt
00:03:59]} 15. dxe5 {[%clk 00:56:48]} {[%emt 00:00:11]} h6 {[%clk 00:50:24]}
{[%emt 00:01:36]} 16. Rxf7 {[%clk 00:56:03]} {[%emt 00:01:16]} Qxf7 {[%clk
00:48:07]} {[%emt 00:02:47]} 17. Bg6 {[%clk 00:56:25]} {[%emt 00:00:08]} O-O
{[%clk 00:48:17]} {[%emt 00:00:21]} 18. Bxf7+ {[%clk 00:56:25]} {[%emt
00:00:29]} Rxf7 {[%clk 00:48:45]} {[%emt 00:00:02]} 19. Rd8+ {[%clk 00:55:37]}
{[%emt 00:01:18]} Rf8 {[%clk 00:49:10]} {[%emt 00:00:05]} 20. Qd1 {[%clk
00:55:11]} {[%emt 00:00:55]} b5 {[%clk 00:49:13]} {[%emt 00:00:27]} 21. Rxf8+
{[%clk 00:55:34]} {[%emt 00:00:07]} 1-0